[Event "Titled Tuesday Blitz October 31 Early 2023"]
[White "Kashefi, Amir Hosein"]
[Black "Babarsik1977"]
[WhiteFideId "12557935"]
[WhiteElo "2588"]
[BlackElo "2307"]
[Result "0-1"]
[Round "5"]
[TimeControl "180+1"]
[Date "2023.10.31"]
[WhiteClock "0:00:00"]
[BlackClock "0:00:09"]
[Board "130"]

1. d4 {[%clk 0:02:43]}  e6 {[%clk 0:03:00]} 2. Nf3 {[%clk 0:02:41]}  f5 {[%clk 0:03:00]} 3. g3 {[%clk 0:02:40]}  Nf6 {[%clk 0:03:00]} 4. Bg2 {[%clk 0:02:41]}  d5 {[%clk 0:03:01]} 5. Bg5 {[%clk 0:02:35]}  Bd6 {[%clk 0:03:01]} 6. Nbd2 {[%clk 0:02:35]}  c6 {[%clk 0:03:01]} 7. O-O {[%clk 0:02:35]}  O-O {[%clk 0:03:01]} 8. e3 {[%clk 0:02:34]}  Nbd7 {[%clk 0:03:01]} 9. c4 {[%clk 0:02:33]}  h6 {[%clk 0:03:00]} 10. Bf4 {[%clk 0:02:33]}  Bxf4 {[%clk 0:02:57]} 11. gxf4 {[%clk 0:02:34]}  Qe8 {[%clk 0:02:57]} 12. Kh1 {[%clk 0:02:34]}  Ne4 {[%clk 0:02:57]} 13. Nxe4 {[%clk 0:02:32]}  fxe4 {[%clk 0:02:57]} 14. Nd2 {[%clk 0:02:15]}  Kh8 {[%clk 0:02:51]} 15. Rg1 {[%clk 0:02:09]}  Nf6 {[%clk 0:02:47]} 16. Bf1 {[%clk 0:02:01]}  Bd7 {[%clk 0:02:46]} 17. Be2 {[%clk 0:02:01]}  Rg8 {[%clk 0:02:41]} 18. Qf1 {[%clk 0:01:58]}  Qe7 {[%clk 0:02:11]} 19. a3 {[%clk 0:01:43]}  Raf8 {[%clk 0:02:10]} 20. Rg3 {[%clk 0:01:36]}  Be8 {[%clk 0:02:08]} 21. Qh3 {[%clk 0:01:34]}  Nh7 {[%clk 0:02:07]} 22. Rag1 {[%clk 0:01:34]}  Rf6 {[%clk 0:01:57]} 23. Bh5 {[%clk 0:01:23]}  g6 {[%clk 0:01:42]} 24. Bd1 {[%clk 0:01:17]}  g5 {[%clk 0:01:31]} 25. Bh5 {[%clk 0:00:51]}  Bg6 {[%clk 0:01:21]} 26. Bxg6 {[%clk 0:00:49]}  Rfxg6 {[%clk 0:01:21]} 27. cxd5 {[%clk 0:00:41]}  exd5 {[%clk 0:01:12]} 28. fxg5 {[%clk 0:00:36]}  Nxg5 {[%clk 0:00:51]} 29. Qh4 {[%clk 0:00:35]}  Qg7 {[%clk 0:00:49]} 30. b4 {[%clk 0:00:31]}  a6 {[%clk 0:00:48]} 31. Qh5 {[%clk 0:00:24]}  Kh7 {[%clk 0:00:44]} 32. Nb3 {[%clk 0:00:15]}  Nf3 {[%clk 0:00:23]} 33. Rxg6 {[%clk 0:00:10]}  Qxg6 {[%clk 0:00:23]} 34. Rxg6 {[%clk 0:00:09]}  Rxg6 {[%clk 0:00:23]} 35. Qxg6+ {[%clk 0:00:05]}  Kxg6 {[%clk 0:00:23]} 36. Nc5 {[%clk 0:00:06]}  Ne1 {[%clk 0:00:15]} 37. Nxb7 {[%clk 0:00:05]}  Nc2 {[%clk 0:00:12]} 38. Nd8 {[%clk 0:00:05]}  Nxa3 {[%clk 0:00:12]} 39. Nxc6 {[%clk 0:00:05]}  Nc2 {[%clk 0:00:11]} 40. Ne7+ {[%clk 0:00:05]}  Kf7 {[%clk 0:00:10]} 41. Nxd5 {[%clk 0:00:06]}  Ke6 {[%clk 0:00:10]} 42. Nc7+ {[%clk 0:00:06]}  Kd6 {[%clk 0:00:10]} 43. Nxa6 {[%clk 0:00:07]}  Kd5 {[%clk 0:00:09]} 44. Kg2 {[%clk 0:00:07]}  Kc4 {[%clk 0:00:10]} 45. Kg3 {[%clk 0:00:06]}  Kb5 {[%clk 0:00:10]} 46. Nc5 {[%clk 0:00:00]}  Nxb4 {[%clk 0:00:09]} 0-1


[Site "https://www.chess.com"]

[Event "Titled Tuesday Blitz October 31 Early 2023"]
[White "Shapiro, Daniel"]
[Black "Gurevich, Dmitry"]
[WhiteFideId "2001780"]
[BlackFideId "2000407"]
[WhiteElo "2299"]
[BlackElo "2553"]
[Result "1/2-1/2"]
[Round "5"]
[TimeControl "180+1"]
[Date "2023.10.31"]
[WhiteClock "0:00:10"]
[BlackClock "0:00:19"]
[Board "134"]

1. d4 {[%clk 0:01:29]}  Nf6 {[%clk 0:02:58]} 2. c4 {[%clk 0:01:28]}  a6 {[%clk 0:02:58]} 3. Nc3 {[%clk 0:01:25]}  c5 {[%clk 0:02:58]} 4. d5 {[%clk 0:01:25]}  b5 {[%clk 0:02:57]} 5. cxb5 {[%clk 0:01:22]}  axb5 {[%clk 0:02:57]} 6. Nxb5 {[%clk 0:01:22]}  Qa5+ {[%clk 0:02:57]} 7. Nc3 {[%clk 0:01:22]}  Bb7 {[%clk 0:02:57]} 8. Bd2 {[%clk 0:01:15]}  Qb6 {[%clk 0:02:57]} 9. e4 {[%clk 0:01:11]}  e6 {[%clk 0:02:57]} 10. dxe6 {[%clk 0:01:09]}  fxe6 {[%clk 0:02:56]} 11. Qc2 {[%clk 0:01:09]}  Nc6 {[%clk 0:02:54]} 12. Nf3 {[%clk 0:01:07]}  Nd4 {[%clk 0:02:51]} 13. Qb1 {[%clk 0:01:01]}  Be7 {[%clk 0:02:43]} 14. Ne5 {[%clk 0:01:01]}  O-O {[%clk 0:02:36]} 15. Bd3 {[%clk 0:01:01]}  Ba6 {[%clk 0:02:32]} 16. O-O {[%clk 0:00:58]}  Bxd3 {[%clk 0:02:23]} 17. Qxd3 {[%clk 0:00:52]}  Qxb2 {[%clk 0:02:12]} 18. Nc4 {[%clk 0:00:48]}  Qc2 {[%clk 0:02:01]} 19. Qxc2 {[%clk 0:00:43]}  Nxc2 {[%clk 0:02:00]} 20. Rac1 {[%clk 0:00:40]}  Nd4 {[%clk 0:01:55]} 21. f3 {[%clk 0:00:35]}  Rfb8 {[%clk 0:01:43]} 22. Be3 {[%clk 0:00:33]}  d5 {[%clk 0:01:38]} 23. Ne5 {[%clk 0:00:24]}  Rb2 {[%clk 0:01:28]} 24. Rfd1 {[%clk 0:00:17]}  Ne2+ {[%clk 0:01:22]} 25. Nxe2 {[%clk 0:00:16]}  Rxe2 {[%clk 0:01:22]} 26. Bxc5 {[%clk 0:00:14]}  Raxa2 {[%clk 0:01:15]} 27. Bxe7 {[%clk 0:00:09]}  Rxg2+ {[%clk 0:01:14]} 28. Kf1 {[%clk 0:00:10]}  Raf2+ {[%clk 0:00:55]} 29. Ke1 {[%clk 0:00:10]}  Re2+ {[%clk 0:00:35]} 30. Kf1 {[%clk 0:00:09]}  Ref2+ {[%clk 0:00:17]} 31. Ke1 {[%clk 0:00:09]}  Re2+ {[%clk 0:00:18]} 32. Kf1 {[%clk 0:00:10]}  Ref2+ {[%clk 0:00:19]} 1/2-1/2


[Site "https://www.chess.com"]

[Event "Titled Tuesday Blitz October 31 Early 2023"]
[White "Novikova, Anna"]
[Black "Omariev, Maksim"]
[WhiteFideId "4146794"]
[BlackFideId "4193423"]
[WhiteElo "2297"]
[BlackElo "2521"]
[Result "0-1"]
[Round "5"]
[TimeControl "180+1"]
[Date "2023.10.31"]
[WhiteClock "0:00:07"]
[BlackClock "0:00:01"]
[Board "135"]

1. e4 {[%clk 0:02:59]}  c5 {[%clk 0:02:43]} 2. Nc3 {[%clk 0:03:00]}  Nc6 {[%clk 0:02:39]} 3. d4 {[%clk 0:03:00]}  Nxd4 {[%clk 0:02:37]} 4. Nf3 {[%clk 0:02:56]}  Nxf3+ {[%clk 0:02:35]} 5. Qxf3 {[%clk 0:02:56]}  d6 {[%clk 0:02:35]} 6. e5 {[%clk 0:02:55]}  dxe5 {[%clk 0:02:33]} 7. Be3 {[%clk 0:02:45]}  e6 {[%clk 0:02:30]} 8. Bb5+ {[%clk 0:02:42]}  Bd7 {[%clk 0:02:17]} 9. O-O-O {[%clk 0:02:42]}  Nf6 {[%clk 0:02:18]} 10. Rxd7 {[%clk 0:02:35]}  Nxd7 {[%clk 0:02:11]} 11. Rd1 {[%clk 0:02:35]}  Rb8 {[%clk 0:01:50]} 12. Rxd7 {[%clk 0:02:32]}  Qxd7 {[%clk 0:01:49]} 13. Bxd7+ {[%clk 0:02:31]}  Kxd7 {[%clk 0:01:50]} 14. Qg3 {[%clk 0:02:24]}  f6 {[%clk 0:01:47]} 15. Ne4 {[%clk 0:02:16]}  b6 {[%clk 0:01:40]} 16. a3 {[%clk 0:01:55]}  Rd8 {[%clk 0:01:30]} 17. a4 {[%clk 0:01:49]}  Ke8 {[%clk 0:01:20]} 18. a5 {[%clk 0:01:44]}  Kf7 {[%clk 0:01:20]} 19. axb6 {[%clk 0:01:24]}  axb6 {[%clk 0:01:20]} 20. Kb1 {[%clk 0:01:25]}  Be7 {[%clk 0:01:20]} 21. Qf3 {[%clk 0:01:25]}  h6 {[%clk 0:01:15]} 22. Qh5+ {[%clk 0:01:17]}  g6 {[%clk 0:01:14]} 23. Qf3 {[%clk 0:01:15]}  Kg7 {[%clk 0:01:12]} 24. Nc3 {[%clk 0:00:41]}  Kf7 {[%clk 0:01:00]} 25. Qb7 {[%clk 0:00:38]}  Rb8 {[%clk 0:01:00]} 26. Qc7 {[%clk 0:00:36]}  Rhc8 {[%clk 0:01:01]} 27. Qa7 {[%clk 0:00:28]}  b5 {[%clk 0:00:56]} 28. Ne4 {[%clk 0:00:22]}  Kf8 {[%clk 0:00:25]} 29. Bxh6+ {[%clk 0:00:21]}  Ke8 {[%clk 0:00:23]} 30. Be3 {[%clk 0:00:17]}  c4 {[%clk 0:00:20]} 31. Nc5 {[%clk 0:00:16]}  Kf7 {[%clk 0:00:18]} 32. Nd7 {[%clk 0:00:15]}  Ra8 {[%clk 0:00:17]} 33. Qb7 {[%clk 0:00:14]}  b4 {[%clk 0:00:16]} 34. Nb6 {[%clk 0:00:14]}  Rcb8 {[%clk 0:00:08]} 35. Qxa8 {[%clk 0:00:10]}  Rxa8 {[%clk 0:00:07]} 36. Nxa8 {[%clk 0:00:11]}  f5 {[%clk 0:00:07]} 37. Nc7 {[%clk 0:00:11]}  f4 {[%clk 0:00:05]} 38. Bb6 {[%clk 0:00:10]}  g5 {[%clk 0:00:06]} 39. Na6 {[%clk 0:00:11]}  e4 {[%clk 0:00:05]} 40. Nc5 {[%clk 0:00:12]}  e3 {[%clk 0:00:02]} 41. Nd7 {[%clk 0:00:07]}  e2 {[%clk 0:00:01]} 0-1


[Site "https://www.chess.com"]

[Event "Titled Tuesday Blitz October 31 Early 2023"]
[White "gpsji27"]
[Black "Czerw, Dawid"]
[BlackFideId "1145746"]
[WhiteElo "2289"]
[BlackElo "2515"]
[Result "1-0"]
[Round "5"]
[TimeControl "180+1"]
[Date "2023.10.31"]
[WhiteClock "0:00:12"]
[BlackClock "0:00:09"]
[Board "136"]

1. d4 {[%clk 0:00:39]}  d5 {[%clk 0:02:57]} 2. Nf3 {[%clk 0:00:38]}  Nf6 {[%clk 0:02:56]} 3. Bg5 {[%clk 0:00:39]}  Ne4 {[%clk 0:02:56]} 4. Bh4 {[%clk 0:00:39]}  h6 {[%clk 0:02:56]} 5. e3 {[%clk 0:00:37]}  g5 {[%clk 0:02:56]} 6. Bg3 {[%clk 0:00:37]}  Bg7 {[%clk 0:02:56]} 7. Nfd2 {[%clk 0:00:37]}  Nxg3 {[%clk 0:02:55]} 8. hxg3 {[%clk 0:00:37]}  Nc6 {[%clk 0:02:55]} 9. Nc3 {[%clk 0:00:37]}  e5 {[%clk 0:02:54]} 10. Nb3 {[%clk 0:00:37]}  exd4 {[%clk 0:02:53]} 11. Nxd4 {[%clk 0:00:38]}  Ne5 {[%clk 0:02:49]} 12. Nf3 {[%clk 0:00:23]}  c6 {[%clk 0:02:44]} 13. Nxe5 {[%clk 0:00:22]}  Bxe5 {[%clk 0:02:43]} 14. Qd2 {[%clk 0:00:23]}  Qf6 {[%clk 0:02:40]} 15. Be2 {[%clk 0:00:22]}  Be6 {[%clk 0:02:35]} 16. Nd1 {[%clk 0:00:19]}  Bxb2 {[%clk 0:02:27]} 17. Nxb2 {[%clk 0:00:19]}  Qxb2 {[%clk 0:02:27]} 18. O-O {[%clk 0:00:20]}  Qf6 {[%clk 0:02:12]} 19. Rab1 {[%clk 0:00:20]}  b6 {[%clk 0:02:08]} 20. Qb4 {[%clk 0:00:19]}  h5 {[%clk 0:02:03]} 21. Qa4 {[%clk 0:00:19]}  Bd7 {[%clk 0:01:50]} 22. c4 {[%clk 0:00:19]}  dxc4 {[%clk 0:01:47]} 23. Qxc4 {[%clk 0:00:19]}  h4 {[%clk 0:01:41]} 24. g4 {[%clk 0:00:19]}  h3 {[%clk 0:01:41]} 25. g3 {[%clk 0:00:19]}  h2+ {[%clk 0:01:37]} 26. Kh1 {[%clk 0:00:20]}  Kf8 {[%clk 0:01:31]} 27. Rbd1 {[%clk 0:00:19]}  Rd8 {[%clk 0:01:23]} 28. Qe4 {[%clk 0:00:18]}  Kg7 {[%clk 0:01:20]} 29. Bc4 {[%clk 0:00:14]}  b5 {[%clk 0:01:13]} 30. Bb3 {[%clk 0:00:13]}  c5 {[%clk 0:01:13]} 31. Bd5 {[%clk 0:00:13]}  c4 {[%clk 0:01:07]} 32. f4 {[%clk 0:00:13]}  Bxg4 {[%clk 0:00:29]} 33. fxg5 {[%clk 0:00:13]}  Qxg5 {[%clk 0:00:17]} 34. Rxf7+ {[%clk 0:00:13]}  Kh6 {[%clk 0:00:17]} 35. Rd2 {[%clk 0:00:12]}  Rhe8 {[%clk 0:00:10]} 36. Rxh2+ {[%clk 0:00:12]}  Bh5 {[%clk 0:00:09]} 37. Qh7# {[%clk 0:00:12]} 1-0


[Site "https://www.chess.com"]

[Event "Titled Tuesday Blitz October 31 Early 2023"]
[White "Goh, Zi Han"]
[Black "Ekdyshman, Mikhail"]
[WhiteFideId "5819156"]
[BlackFideId "4149416"]
[WhiteElo "2285"]
[BlackElo "2508"]
[Result "0-1"]
[Round "5"]
[TimeControl "180+1"]
[Date "2023.10.31"]
[WhiteClock "0:00:21"]
[BlackClock "0:01:23"]
[Board "137"]

1. d4 {[%clk 0:02:46]}  Nf6 {[%clk 0:02:58]} 2. c4 {[%clk 0:02:46]}  c5 {[%clk 0:02:58]} 3. d5 {[%clk 0:02:46]}  b5 {[%clk 0:02:55]} 4. cxb5 {[%clk 0:02:47]}  a6 {[%clk 0:02:56]} 5. b6 {[%clk 0:02:47]}  a5 {[%clk 0:02:55]} 6. Nc3 {[%clk 0:02:45]}  Ba6 {[%clk 0:02:55]} 7. g3 {[%clk 0:02:30]}  d6 {[%clk 0:02:53]} 8. Bg2 {[%clk 0:02:29]}  Nbd7 {[%clk 0:02:54]} 9. Nf3 {[%clk 0:02:29]}  g6 {[%clk 0:02:54]} 10. O-O {[%clk 0:02:29]}  Bg7 {[%clk 0:02:53]} 11. Re1 {[%clk 0:02:29]}  O-O {[%clk 0:02:53]} 12. e4 {[%clk 0:02:29]}  Nxb6 {[%clk 0:02:52]} 13. e5 {[%clk 0:02:18]}  Nfd7 {[%clk 0:02:49]} 14. e6 {[%clk 0:02:09]}  fxe6 {[%clk 0:02:47]} 15. Ng5 {[%clk 0:02:04]}  e5 {[%clk 0:02:23]} 16. Ne6 {[%clk 0:02:02]}  Qe8 {[%clk 0:02:22]} 17. Nxf8 {[%clk 0:01:54]}  Qxf8 {[%clk 0:02:19]} 18. Bg5 {[%clk 0:01:45]}  Bf6 {[%clk 0:02:17]} 19. Qc1 {[%clk 0:01:40]}  Bb7 {[%clk 0:02:15]} 20. Bh3 {[%clk 0:01:30]}  Kh8 {[%clk 0:02:07]} 21. Be6 {[%clk 0:01:15]}  Bxg5 {[%clk 0:02:04]} 22. Qxg5 {[%clk 0:01:16]}  Nf6 {[%clk 0:02:05]} 23. Rad1 {[%clk 0:01:13]}  Bc8 {[%clk 0:01:59]} 24. Bxc8 {[%clk 0:01:10]}  Qxc8 {[%clk 0:01:53]} 25. f4 {[%clk 0:01:07]}  Nbd7 {[%clk 0:01:42]} 26. Ne4 {[%clk 0:00:50]}  Nxe4 {[%clk 0:01:38]} 27. Rxe4 {[%clk 0:00:51]}  Nf6 {[%clk 0:01:38]} 28. Re2 {[%clk 0:00:49]}  e4 {[%clk 0:01:36]} 29. Rf1 {[%clk 0:00:42]}  Qf5 {[%clk 0:01:36]} 30. Qxf5 {[%clk 0:00:31]}  gxf5 {[%clk 0:01:35]} 31. Rd1 {[%clk 0:00:32]}  Rb8 {[%clk 0:01:34]} 32. Kf2 {[%clk 0:00:28]}  h5 {[%clk 0:01:29]} 33. Ke3 {[%clk 0:00:27]}  Kg7 {[%clk 0:01:29]} 34. Rdd2 {[%clk 0:00:21]}  Ng4# {[%clk 0:01:23]} 0-1


[Site "https://www.chess.com"]

[Event "Titled Tuesday Blitz October 31 Early 2023"]
[White "Sarkar, Justin"]
[Black "Bilan, Danila"]
[WhiteFideId "2010011"]
[BlackFideId "24161918"]
[WhiteElo "2268"]
[BlackElo "2474"]
[Result "0-1"]
[Round "5"]
[TimeControl "180+1"]
[Date "2023.10.31"]
[WhiteClock "0:00:00"]
[BlackClock "0:00:18"]
[Board "142"]

1. d4 {[%clk 0:02:55]}  d5 {[%clk 0:02:59]} 2. c4 {[%clk 0:02:55]}  c6 {[%clk 0:02:59]} 3. Nf3 {[%clk 0:02:54]}  Nf6 {[%clk 0:02:59]} 4. Nc3 {[%clk 0:02:53]}  e6 {[%clk 0:02:59]} 5. Bg5 {[%clk 0:02:52]}  Nbd7 {[%clk 0:02:59]} 6. e3 {[%clk 0:02:48]}  Qa5 {[%clk 0:02:58]} 7. cxd5 {[%clk 0:02:26]}  exd5 {[%clk 0:02:52]} 8. Bd3 {[%clk 0:02:16]}  Ne4 {[%clk 0:02:51]} 9. O-O {[%clk 0:02:16]}  Nxg5 {[%clk 0:02:45]} 10. Nxg5 {[%clk 0:02:16]}  Nf6 {[%clk 0:02:40]} 11. a3 {[%clk 0:01:59]}  h6 {[%clk 0:02:31]} 12. Nf3 {[%clk 0:01:58]}  Bg4 {[%clk 0:02:31]} 13. h3 {[%clk 0:01:53]}  Be6 {[%clk 0:02:26]} 14. Ne5 {[%clk 0:01:49]}  Bd6 {[%clk 0:01:55]} 15. f4 {[%clk 0:01:46]}  O-O {[%clk 0:01:53]} 16. Qf3 {[%clk 0:01:37]}  Rfe8 {[%clk 0:01:35]} 17. g4 {[%clk 0:01:33]}  c5 {[%clk 0:01:29]} 18. g5 {[%clk 0:01:09]}  hxg5 {[%clk 0:01:17]} 19. fxg5 {[%clk 0:01:08]}  Bxe5 {[%clk 0:01:14]} 20. dxe5 {[%clk 0:01:05]}  Nd7 {[%clk 0:01:10]} 21. Qh5 {[%clk 0:00:34]}  Nf8 {[%clk 0:00:48]} 22. Rf4 {[%clk 0:00:28]}  g6 {[%clk 0:00:34]} 23. Qh6 {[%clk 0:00:27]}  Qc7 {[%clk 0:00:33]} 24. Raf1 {[%clk 0:00:02]}  Qxe5 {[%clk 0:00:32]} 25. R1f3 {[%clk 0:00:02]}  Nh7 {[%clk 0:00:21]} 26. Rh4 {[%clk 0:00:01]}  Qxg5+ {[%clk 0:00:19]} 27. Qxg5 {[%clk 0:00:01]}  Nxg5 {[%clk 0:00:20]} 28. Rg3 {[%clk 0:00:00]}  Nh7 {[%clk 0:00:18]} 0-1


[Site "https://www.chess.com"]

[Event "Titled Tuesday Blitz October 31 Early 2023"]
[White "Juicy_Fork"]
[Black "De Souza, Cristiano Gomes"]
[BlackFideId "2151758"]
[WhiteElo "2427"]
[BlackElo "2245"]
[Result "1/2-1/2"]
[Round "5"]
[TimeControl "180+1"]
[Date "2023.10.31"]
[WhiteClock "0:00:05"]
[BlackClock "0:00:15"]
[Board "145"]

1. e4 {[%clk 0:02:55]}  c5 {[%clk 0:02:59]} 2. Nf3 {[%clk 0:02:56]}  d6 {[%clk 0:02:59]} 3. d4 {[%clk 0:02:56]}  cxd4 {[%clk 0:02:59]} 4. Nxd4 {[%clk 0:02:57]}  Nf6 {[%clk 0:03:00]} 5. Nc3 {[%clk 0:02:58]}  g6 {[%clk 0:02:59]} 6. Be3 {[%clk 0:02:57]}  Bg7 {[%clk 0:03:00]} 7. f3 {[%clk 0:02:58]}  O-O {[%clk 0:03:00]} 8. Qd2 {[%clk 0:02:58]}  Nc6 {[%clk 0:03:01]} 9. O-O-O {[%clk 0:02:59]}  d5 {[%clk 0:03:01]} 10. exd5 {[%clk 0:03:00]}  Nxd5 {[%clk 0:03:01]} 11. Nxc6 {[%clk 0:03:00]}  bxc6 {[%clk 0:03:02]} 12. Bd4 {[%clk 0:03:01]}  e5 {[%clk 0:03:01]} 13. Bc5 {[%clk 0:03:01]}  Be6 {[%clk 0:03:02]} 14. Ne4 {[%clk 0:03:02]}  Re8 {[%clk 0:03:01]} 15. h4 {[%clk 0:03:02]}  h6 {[%clk 0:03:01]} 16. h5 {[%clk 0:03:02]}  g5 {[%clk 0:02:59]} 17. g4 {[%clk 0:03:03]}  Nf4 {[%clk 0:02:52]} 18. Qc3 {[%clk 0:02:53]}  Bd5 {[%clk 0:02:52]} 19. Ba6 {[%clk 0:02:40]}  Qc7 {[%clk 0:02:42]} 20. a3 {[%clk 0:02:34]}  Ne6 {[%clk 0:02:39]} 21. Nd6 {[%clk 0:02:18]}  Red8 {[%clk 0:02:23]} 22. Nf5 {[%clk 0:02:13]}  Nxc5 {[%clk 0:02:17]} 23. Qxc5 {[%clk 0:02:10]}  Bxf3 {[%clk 0:02:16]} 24. Rdf1 {[%clk 0:01:40]}  Bxh1 {[%clk 0:02:14]} 25. Bc4 {[%clk 0:01:01]}  Bd5 {[%clk 0:02:09]} 26. Bxd5 {[%clk 0:00:59]}  Rxd5 {[%clk 0:02:00]} 27. Ne7+ {[%clk 0:00:57]}  Kh8 {[%clk 0:01:38]} 28. Nxd5 {[%clk 0:00:57]}  Qd7 {[%clk 0:01:37]} 29. Ne3 {[%clk 0:00:56]}  e4 {[%clk 0:01:17]} 30. Nf5 {[%clk 0:00:51]}  Qd5 {[%clk 0:00:58]} 31. Qe7 {[%clk 0:00:25]}  Rd8 {[%clk 0:00:19]} 32. Nxg7 {[%clk 0:00:18]}  Kxg7 {[%clk 0:00:19]} 33. Qf6+ {[%clk 0:00:19]}  Kg8 {[%clk 0:00:19]} 34. Kb1 {[%clk 0:00:08]}  e3 {[%clk 0:00:19]} 35. Re1 {[%clk 0:00:05]}  Qd2 {[%clk 0:00:15]} 36. Qf1 {[%clk 0:00:05]}  Rd4 {[%clk 0:00:12]} 37. Re2 {[%clk 0:00:05]}  Qd1+ {[%clk 0:00:10]} 38. Qxd1 {[%clk 0:00:05]}  Rxd1+ {[%clk 0:00:10]} 39. Ka2 {[%clk 0:00:05]}  Rg1 {[%clk 0:00:10]} 40. Rxe3 {[%clk 0:00:06]}  Rxg4 {[%clk 0:00:10]} 41. Rc3 {[%clk 0:00:06]}  Rh4 {[%clk 0:00:10]} 42. Rxc6 {[%clk 0:00:07]}  Rxh5 {[%clk 0:00:11]} 43. c4 {[%clk 0:00:07]}  Kg7 {[%clk 0:00:12]} 44. c5 {[%clk 0:00:08]}  Rh2 {[%clk 0:00:13]} 45. Kb3 {[%clk 0:00:07]}  g4 {[%clk 0:00:13]} 46. Rd6 {[%clk 0:00:07]}  g3 {[%clk 0:00:14]} 47. Rd3 {[%clk 0:00:06]}  g2 {[%clk 0:00:14]} 48. Rg3+ {[%clk 0:00:06]}  Kf6 {[%clk 0:00:15]} 49. c6 {[%clk 0:00:07]}  Rh5 {[%clk 0:00:13]} 50. Rxg2 {[%clk 0:00:07]}  Rc5 {[%clk 0:00:14]} 51. Rc2 {[%clk 0:00:07]}  Rxc2 {[%clk 0:00:13]} 52. Kxc2 {[%clk 0:00:07]}  Ke6 {[%clk 0:00:14]} 53. Kd3 {[%clk 0:00:08]}  Kd6 {[%clk 0:00:14]} 54. Ke4 {[%clk 0:00:08]}  Kxc6 {[%clk 0:00:15]} 55. Kf5 {[%clk 0:00:08]}  Kb5 {[%clk 0:00:15]} 56. b3 {[%clk 0:00:09]}  a5 {[%clk 0:00:15]} 57. Kg4 {[%clk 0:00:06]}  Kc5 {[%clk 0:00:15]} 58. Kh5 {[%clk 0:00:05]}  f5 {[%clk 0:00:15]} 59. Kh4 {[%clk 0:00:03]}  Kd4 {[%clk 0:00:15]} 60. Kg3 {[%clk 0:00:04]}  Kc3 {[%clk 0:00:15]} 61. b4 {[%clk 0:00:02]}  axb4 {[%clk 0:00:15]} 62. axb4 {[%clk 0:00:03]}  Kxb4 {[%clk 0:00:15]} 63. Kf4 {[%clk 0:00:04]}  Kc4 {[%clk 0:00:14]} 64. Kxf5 {[%clk 0:00:04]}  Kd4 {[%clk 0:00:14]} 65. Kg6 {[%clk 0:00:05]}  Ke5 {[%clk 0:00:15]} 66. Kxh6 {[%clk 0:00:05]} 1/2-1/2


[Site "https://www.chess.com"]

[Event "Titled Tuesday Blitz October 31 Early 2023"]
[White "Akylbek2021"]
[Black "Mrudul Dehankar"]
[BlackFideId "25096990"]
[WhiteElo "2242"]
[BlackElo "2414"]
[Result "1-0"]
[Round "5"]
[TimeControl "180+1"]
[Date "2023.10.31"]
[WhiteClock "0:00:08"]
[BlackClock "0:00:00"]
[Board "147"]

1. e4 {[%clk 0:02:44]}  c6 {[%clk 0:02:57]} 2. Nf3 {[%clk 0:02:42]}  d5 {[%clk 0:02:56]} 3. d3 {[%clk 0:02:43]}  dxe4 {[%clk 0:02:56]} 4. Ng5 {[%clk 0:02:43]}  exd3 {[%clk 0:02:54]} 5. Bxd3 {[%clk 0:02:44]}  e6 {[%clk 0:02:09]} 6. Bxh7 {[%clk 0:01:55]}  Qa5+ {[%clk 0:00:55]} 7. Nc3 {[%clk 0:01:32]}  Be7 {[%clk 0:00:54]} 8. h4 {[%clk 0:00:45]}  Bxg5 {[%clk 0:00:35]} 9. hxg5 {[%clk 0:00:40]}  Ne7 {[%clk 0:00:35]} 10. Bd2 {[%clk 0:00:30]}  Qf5 {[%clk 0:00:20]} 11. Qh5 {[%clk 0:00:08]}  g6 {[%clk 0:00:18]} 12. Qh6 {[%clk 0:00:08]}  Nd7 {[%clk 0:00:18]} 13. Qg7 {[%clk 0:00:07]}  Rf8 {[%clk 0:00:14]} 14. O-O-O {[%clk 0:00:08]}  b6 {[%clk 0:00:11]} 15. f3 {[%clk 0:00:08]}  Bb7 {[%clk 0:00:00]} 16. Ne4 {[%clk 0:00:08]} 1-0


[Site "https://www.chess.com"]

[Event "Titled Tuesday Blitz October 31 Early 2023"]
[White "crazy_m_attack"]
[Black "Kiseleva, Arina"]
[BlackFideId "4164989"]
[WhiteElo "2413"]
[BlackElo "2232"]
[Result "1-0"]
[Round "5"]
[TimeControl "180+1"]
[Date "2023.10.31"]
[WhiteClock "0:00:57"]
[BlackClock "0:00:00"]
[Board "148"]

1. e4 {[%clk 0:03:00]}  c6 {[%clk 0:03:00]} 2. d4 {[%clk 0:03:00]}  d5 {[%clk 0:03:01]} 3. Nc3 {[%clk 0:03:00]}  dxe4 {[%clk 0:03:01]} 4. Nxe4 {[%clk 0:03:01]}  Nf6 {[%clk 0:03:01]} 5. Nxf6+ {[%clk 0:03:02]}  exf6 {[%clk 0:03:02]} 6. c3 {[%clk 0:03:02]}  Bd6 {[%clk 0:03:02]} 7. Bd3 {[%clk 0:03:03]}  O-O {[%clk 0:03:02]} 8. Ne2 {[%clk 0:03:03]}  Re8 {[%clk 0:03:02]} 9. Qc2 {[%clk 0:03:02]}  h5 {[%clk 0:03:02]} 10. Be3 {[%clk 0:03:00]}  b5 {[%clk 0:02:58]} 11. O-O-O {[%clk 0:02:57]}  Be6 {[%clk 0:02:58]} 12. c4 {[%clk 0:02:53]}  bxc4 {[%clk 0:02:49]} 13. Bxc4 {[%clk 0:02:54]}  Qa5 {[%clk 0:02:39]} 14. Bxe6 {[%clk 0:02:49]}  Rxe6 {[%clk 0:02:38]} 15. Kb1 {[%clk 0:02:49]}  g6 {[%clk 0:02:24]} 16. d5 {[%clk 0:02:47]}  Re8 {[%clk 0:01:51]} 17. dxc6 {[%clk 0:02:44]}  Be5 {[%clk 0:01:46]} 18. Bd4 {[%clk 0:02:25]}  Na6 {[%clk 0:01:41]} 19. Bxe5 {[%clk 0:02:22]}  Rxe5 {[%clk 0:01:23]} 20. Nd4 {[%clk 0:02:18]}  Rc5 {[%clk 0:01:10]} 21. Qd2 {[%clk 0:02:11]}  Qb6 {[%clk 0:01:02]} 22. Rc1 {[%clk 0:02:08]}  Rb8 {[%clk 0:00:57]} 23. Rxc5 {[%clk 0:01:52]}  Nxc5 {[%clk 0:00:56]} 24. Qc2 {[%clk 0:01:46]}  Na6 {[%clk 0:00:34]} 25. Qc3 {[%clk 0:01:30]}  Nb4 {[%clk 0:00:25]} 26. Rc1 {[%clk 0:01:15]}  Nd5 {[%clk 0:00:23]} 27. Qd2 {[%clk 0:01:14]}  Nc7 {[%clk 0:00:16]} 28. Nb3 {[%clk 0:01:11]}  a5 {[%clk 0:00:15]} 29. Qxa5 {[%clk 0:01:05]}  Qxa5 {[%clk 0:00:08]} 30. Nxa5 {[%clk 0:01:06]}  Rb5 {[%clk 0:00:05]} 31. Nb3 {[%clk 0:01:01]}  Kf8 {[%clk 0:00:04]} 32. Rd1 {[%clk 0:00:56]}  Ke7 {[%clk 0:00:02]} 33. Rd7+ {[%clk 0:00:56]}  Ke6 {[%clk 0:00:01]} 34. Rxc7 {[%clk 0:00:57]}  Re5 {[%clk 0:00:01]} 35. a4 {[%clk 0:00:56]}  Re1+ {[%clk 0:00:00]} 36. Ka2 {[%clk 0:00:57]} 1-0


[Site "https://www.chess.com"]